[Event "Sarajevo-ch 2019"]
[Site "Sarajevo"]
[Date "2019.03.13"]
[Round "2.3"]
[White "Halilovic, Fahrudin"]
[Black "Sitnic, Ahmed"]
[Result "1/2-1/2"]
[ECO "D05"]
[WhiteElo "2053"]
[BlackElo "1841"]
[Annotator "NA RC"]
[PlyCount "102"]
[EventDate "2019.03.12"]
[EventType "tourn"]
[EventCountry "BIH"]
[SourceTitle "playchess.com"]
[Source "ChessBase"]
[SourceQuality "1"]
[TimeControl "5400+30"]

1. d4 {[%emt 0:05:45]} d5 {[%emt 0:00:00]} 2. Nf3 {[%emt 0:00:08]} Nf6 {[%emt 0:00:00]} 3. e3 {[%emt 0:00:06]} e6 {[%emt 0:00:00]} 4. Bd3 {[%emt 0:00:07]} Be7 {[%emt 0:00:07]} 5. O-O {[%emt 0:00:11]} O-O {[%emt 0:00:12]} 6. b3 {[%emt 0:00:06]} b6 {[%emt 0:01:53]} 7. Bb2 {[%emt 0:00:06]} Bb7 {[%emt 0:00:12]} 8. Nbd2 {[%emt 0:00:14]} c5 {[%emt 0:02:17]} 9. Ne5 {[%emt 0:00:49]} Nc6 {[%emt 0:01:24]} 10. a3 {[%emt 0:01:53]} Rc8 {[%emt 0:02:05]} 11. f4 {[%emt 0:03:42]} Nxe5 {[%emt 0:21:21] D05: Colle System with ...e6} (11... a6 12. Nxc6 Rxc6 13. c4 dxc4 14. bxc4 Qa8 15. Qe2 Rd8 16. Rfd1 cxd4 17. exd4 b5 18. d5 Bc5+ 19. Kh1 exd5 20. cxb5 {0-1 (57) Vakhidov,J (2471)-Zhigalko,S (2678) Dubai 2014}) 12. dxe5 {[%emt 0:00:11]} Ne4 {[%emt 0:00:59]} 13. Qe2 {[%emt 0:04:44]} Nxd2 {[%emt 0:02:41]} 14. Qxd2 {[%emt 0:00:02]} c4 $146 {[%emt 0:00:24]} ({Predecessor:} 14... Qc7 15. c4 dxc4 16. bxc4 Rfd8 17. Qc2 g6 18. e4 Rd7 19. Rf3 {½-½ (48) Justo,D (2322)-Fayard,A (2215) France 2010}) 15. Be2 {[%emt 0:00:27]} c3 {[%emt 0:01:13]} (15... b5 $11) 16. Bxc3 {[%emt 0:00:35]} Qc7 {[%emt 0:00:34]} 17. Bd4 {[%emt 0:18:21]} Qxc2 {[%emt 0:00:22]} 18. Qd3 {[%emt 0:00:27]} Qxd3 {[%emt 0:10:44]} 19. Bxd3 {[%emt 0:00:02]} Rc7 {[%emt 0:00:33]} 20. b4 {[%emt 0:00:54]} f5 {[%emt 0:05:11]} 21. Kf2 {[%emt 0:08:54]} g5 {[%emt 0:06:43]} 22. h3 {[%emt 0:02:41]} h5 {[%emt 0:08:37]} 23. Rg1 {[%emt 0:02:14]} ({Better is} 23. g4 $16) 23... Kg7 {[%emt 0:05:09] [#]} (23... gxf4 $11 {keeps the balance.} 24. exf4 h4) 24. g4 $1 {[%emt 0:02:42]} fxg4 {[%emt 0:08:41]} 25. hxg4 {[%emt 0:00:20]} hxg4 {[%emt 0:02:28]} 26. Rxg4 {[%emt 0:02:23]} Rh8 {[%emt 0:00:49]} 27. Rag1 {[%emt 0:12:53]} Rh2+ {[%emt 0:07:40]} 28. R4g2 {[%emt 0:00:15]} Rxg2+ {[%emt 0:00:35]} 29. Rxg2 {[%emt 0:00:02]} Rc8 {[%emt 0:00:17]} 30. fxg5 {[%emt 0:14:28]} ({White should try} 30. Kf3 $18) 30... Rh8 {[%emt 0:01:02]} 31. Kf3 {[%emt 0:02:48]} Rh5 {[%emt 0:01:11]} 32. Rc2 {[%emt 0:00:27]} Bd8 {[%emt 0:00:29]} 33. g6 {[%emt 0:00:35]} Rh1 {[%emt 0:01:05]} 34. Rf2 {[%emt 0:03:06]} Rh8 {[%emt 0:01:25]} 35. Kg4 {[%emt 0:01:38]} Rf8 {[%emt 0:00:41]} 36. Rc2 {[%emt 0:04:14]} Rh8 {[%emt 0:00:37]} 37. Kg3 {[%emt 0:04:06]} Rh1 {[%emt 0:03:06]} 38. Rg2 $11 {[%emt 0:02:35]} (38. Kg2 $18 Rh8 39. Rc1) 38... Rh8 {[%emt 0:01:13]} (38... Bc6 $11) 39. Kf3 {[%emt 0:01:39]} Rf8+ {[%emt 0:00:42]} 40. Kg4 {[%emt 0:01:42]} Rh8 {[%emt 0:00:25]} 41. a4 {[%emt 0:00:54]} Bc6 {[%emt 0:01:51]} 42. b5 {[%emt 0:00:29]} Be8 {[%emt 0:01:17]} 43. Kf3 {[%emt 0:00:17]} Rh6 {[%emt 0:01:01]} 44. e4 {[%emt 0:01:01]} Bxg6 {[%emt 0:00:24]} 45. exd5 {[%emt 0:00:23]} Rh3+ {[%emt 0:00:29]} 46. Ke2 {[%emt 0:00:10]} Rxd3 {[%emt 0:00:27]} 47. Rxg6+ {[%emt 0:00:00]} Kxg6 {[%emt 0:00:10]} 48. Kxd3 {[%emt 0:00:04]} exd5 {[%emt 0:00:09]} 49. a5 {[%emt 0:01:13]} Kf5 {[%emt 0:00:36]} 50. a6 {[%emt 0:00:22]} Bc7 {[%emt 0:00:42]} 51. Ke3 {[%emt 0:00:53]} Bb8 {[%emt 0:01:30] Ke4+ Kxe5+} 1/2-1/2

[Event "Sarajevo-ch 2019"]
[Site "Sarajevo"]
[Date "2019.03.14"]
[Round "3.3"]
[White "Sitnic, Ahmed"]
[Black "Kozarcanin, Sead"]
[Result "1/2-1/2"]
[ECO "D02"]
[WhiteElo "1841"]
[BlackElo "2005"]
[Annotator "NA RC"]
[PlyCount "39"]
[EventDate "2019.03.12"]
[EventType "tourn"]
[EventCountry "BIH"]
[SourceTitle "playchess.com"]
[Source "ChessBase"]
[SourceQuality "1"]
[TimeControl "5400+30"]

{[%evp 8,39,11,16,6,-8,9,-25,-27,-29,-20,-30,-25,-31,-21,-37,-34,-45,-37,32767,-7,-21,-6,-25,0,-12,-15,-8,74,0,0,-12,97,0]} 1. d4 {[%emt 0:00:00]} d5 {[%emt 0:00:00]} 2. Nf3 {[%emt 0:00:00]} Nf6 {[%emt 0:00:00]} 3. Bf4 {[%emt 0:00:00]} Bf5 {[%emt 0:03:27]} 4. e3 {[%emt 0:00:38]} e6 {[%emt 0:00:16]} 5. Bd3 {[%emt 0:01:01]} Bd6 {[%emt 0:00:41]} 6. Bg3 {[%emt 0:02:27] D02: 1 d4 d5 2 Nf3 sidelines, including 2...Nf6 3 g3 and 2...Nf6 3 Bf4} (6. Bg5 h6 7. Bh4 Bxd3 8. Qxd3 Nbd7 9. c4 dxc4 10. Qxc4 c5 11. dxc5 Bxc5 12. Nc3 Rc8 13. O-O O-O {½-½ (34) Artemiev,V (2658)-Sjugirov,S (2664) Novi Sad 2016}) 6... Ne4 {[%emt 0:01:03]} 7. Nbd2 {[%emt 0:01:31]} Nxg3 {[%emt 0:04:25]} 8. hxg3 {[%emt 0:00:11]} Bxd3 {[%emt 0:00:15]} 9. cxd3 {[%emt 0:00:09]} Nd7 {[%emt 0:10:03]} 10. Qb3 $146 {[%emt 0:03:23]} ({Predecessor:} 10. O-O c6 11. Nb3 O-O 12. Qc2 e5 13. dxe5 Nxe5 14. Nxe5 Bxe5 {½-½ (41) Pierecker,M (2265)-Posch,W (2185) Austria 1997}) 10... Rb8 {[%emt 0:02:15]} 11. e4 {[%emt 0:05:06]} c6 {[%emt 0:00:13]} 12. Nf1 {[%emt 0:05:28]} Qa5+ {[%emt 0:01:09]} 13. Ke2 {[%emt 0:00:12]} f5 {[%emt 0:02:40]} ({Black should play} 13... O-O $15) 14. Ne3 {[%emt 0:02:19]} O-O {[%emt 0:05:41]} 15. Ng5 {[%emt 0:04:19]} fxe4 {[%emt 0:01:57]} 16. dxe4 {[%emt 0:07:19]} Qa6+ {[%emt 0:09:50]} 17. Ke1 {[%emt 0:05:57]} Qa5+ {[%emt 0:00:37]} 18. Ke2 {[%emt 0:00:15]} Qa6+ {[%emt 0:01:58]} 19. Ke1 {[%emt 0:00:20]} Qa5+ $16 {[%emt 0:16:28] [#]} (19... h6 $11 {keeps the balance.} 20. Nxe6 Rf6 21. exd5 cxd5) 20. Ke2 {[%emt 0:00:13]} ({White should try} 20. Kf1 $1 $16) 1/2-1/2

[Event "Sarajevo-ch 2019"]
[Site "Sarajevo"]
[Date "2019.03.16"]
[Round "5.1"]
[White "Hadzovic, Amir"]
[Black "Kurtcehajic, Suad"]
[Result "1-0"]
[ECO "B11"]
[WhiteElo "2255"]
[BlackElo "1982"]
[Annotator "NA RC"]
[PlyCount "99"]
[EventDate "2019.03.12"]
[EventType "tourn"]
[EventCountry "BIH"]
[SourceTitle "playchess.com"]
[Source "ChessBase"]
[SourceQuality "1"]
[TimeControl "5400+30"]

{[%evp 8,76,31,0,47,45,48,34,46,33,29,37,19,32,78,71,61,64,78,37,33,38,32767,32767,35,32767,58,32767,53,31,32,27,29,22,32767,32767,32767,32767,32767,32767,32767,-85,-82,-99,-59,32767,32767,32767,-110,-118,-119,-192,-97,-70,-95,-121,-45,-64,-56,-74,32767,-66,32767,-54,229,339,249,348,365,229,365]} 1. e4 {[%emt 0:05:03]} c6 {[%emt 0:01:59]} 2. Nc3 {[%emt 0:00:06]} d5 {[%emt 0:00:04]} 3. Nf3 {[%emt 0:00:05]} Bg4 {[%emt 0:00:13]} 4. h3 {[%emt 0:00:43]} Bxf3 {[%emt 0:00:26]} 5. Qxf3 {[%emt 0:00:07]} dxe4 {[%emt 0:00:09]} 6. Nxe4 {[%emt 0:00:43]} Nd7 {[%emt 0:01:07]} 7. d4 {[%emt 0:05:19]} e6 {[%emt 0:01:13]} 8. Bg5 {[%emt 0:04:09] B11: Caro-Kann: Two Knights Variation} (8. Bd3 Ngf6 9. c3 Be7 10. O-O Nxe4 11. Qxe4 Nf6 12. Qe2 O-O 13. Bg5 h6 14. Bxf6 Bxf6 15. Rad1 Qd5 16. Qe4 Qxe4 17. Bxe4 Rfd8 18. g3 g6 19. Kg2 h5 20. h4 Kg7 {½-½ (20) Shanava,K (2557)-Pantsulaia,L (2587) Tbilisi 2010}) 8... Ndf6 {[%emt 0:08:18]} 9. O-O-O {[%emt 0:08:05]} h6 $146 {[%emt 0:15:18]} ({Predecessor:} 9... Qd5 10. Bxf6 Qxa2 11. Nc3 Qa1+ 12. Kd2 Qa5 13. Be5 O-O-O 14. Bd3 f6 15. Ra1 Qb6 16. Bf4 Bb4 17. Rhe1 Rxd4 18. Rxe6 Ne7 19. Rxe7 Rxd3+ 20. cxd3 Bxe7 21. Kc2 g6 22. Be3 {1-0 (22) Onoprienko,V (2342)-Werner,A Hockenheim 2007}) 10. Bh4 {[%emt 0:02:48]} g5 {[%emt 0:04:45]} 11. Bg3 {[%emt 0:01:18]} Nxe4 {[%emt 0:03:30]} 12. Qxe4 {[%emt 0:00:06]} Qd5 {[%emt 0:19:36]} 13. Qe5 {[%emt 0:09:38]} Qxe5 {[%emt 0:03:48]} 14. Bxe5 {[%emt 0:00:23]} f6 {[%emt 0:03:41]} 15. Bh2 {[%emt 0:00:31]} Ne7 {[%emt 0:05:01]} 16. Bd3 {[%emt 0:01:58]} Kd7 {[%emt 0:15:47]} 17. c4 {[%emt 0:03:54]} Nc8 {[%emt 0:07:27]} 18. d5 {[%emt 0:02:30]} cxd5 {[%emt 0:01:40]} 19. cxd5 {[%emt 0:00:14]} e5 {[%emt 0:00:23]} 20. Bf5+ {[%emt 0:01:53]} Kd8 {[%emt 0:00:25]} 21. Rhe1 {[%emt 0:06:54]} Bc5 {[%emt 0:00:17]} 22. Re2 {[%emt 0:00:24]} Nd6 {[%emt 0:00:11]} 23. Be6 {[%emt 0:00:09]} Ke7 {[%emt 0:00:28]} 24. Kb1 {[%emt 0:05:48] [#]} (24. Rc2 $11 {keeps the balance.} Bb6 25. a4) 24... Nb5 $1 {[%emt 0:00:43]} 25. Rc2 {[%emt 0:10:20]} Bb6 {[%emt 0:00:59]} 26. g3 {[%emt 0:02:35]} Nd4 {[%emt 0:00:21]} 27. Rxd4 {[%emt 0:00:10]} Bxd4 {[%emt 0:02:49]} 28. Rc7+ {[%emt 0:06:32]} Kd6 {[%emt 0:00:10]} 29. Rxb7 {[%emt 0:03:21]} (29. Rd7+ $17 Kc5 30. Rxb7) 29... Rab8 {[%emt 0:01:30]} (29... Rhd8 $19 30. Rf7 Bxf2) 30. Rd7+ {[%emt 0:00:05]} Kc5 {[%emt 0:00:06]} 31. b3 {[%emt 0:00:09]} Kb4 {[%emt 0:00:32]} ({Black should play} 31... a5 $17 32. Rc7+ Kb6 33. Rc6+ Ka7) 32. Rc7 {[%emt 0:00:26]} Bxf2 {[%emt 0:00:41]} 33. g4 {[%emt 0:01:29]} Rhd8 {[%emt 0:00:38]} 34. Rc2 {[%emt 0:02:24]} Bd4 {[%emt 0:00:38]} 35. Bg3 {[%emt 0:01:43] [#]} Rb7 $2 {[%emt 0:00:34]} (35... Bc3 $1 $17 {keeps the pressure on.}) 36. Be1+ {[%emt 0:00:54]} Kb5 {[%emt 0:00:11]} 37. Rc6 {[%emt 0:03:15]} Bb6 {[%emt 0:00:34]} 38. a4+ {[%emt 0:00:39]} Ka6 $18 {[%emt 0:00:46]} 39. a5 {[%emt 0:02:25]} Kb5 {[%emt 0:01:52]} 40. axb6 {[%emt 0:00:21]} Rxb6 {[%emt 0:00:23]} 41. Rxb6+ {[%emt 0:02:00]} axb6 {[%emt 0:00:20]} 42. Bf2 {[%emt 0:00:15]} Ka5 {[%emt 0:00:42]} 43. Kc2 {[%emt 0:00:30]} Rd6 {[%emt 0:00:03]} 44. Be1+ {[%emt 0:00:30]} Kb5 {[%emt 0:00:04]} 45. Kd3 {[%emt 0:00:07]} Kc5 {[%emt 0:00:26]} 46. Ke4 {[%emt 0:00:16]} Rd8 {[%emt 0:00:05]} 47. Bf2+ {[%emt 0:00:16]} Kb5 {[%emt 0:00:45]} 48. Kf5 {[%emt 0:00:18]} Kb4 {[%emt 0:00:33]} 49. Bxb6 {[%emt 0:00:25]} Rf8 {[%emt 0:01:07]} 50. Ke4 1-0

[Event "Sarajevo-ch 2019"]
[Site "Sarajevo"]
[Date "2019.03.16"]
[Round "5.3"]
[White "Terzic, Ilijas"]
[Black "Sutkovic, Damir"]
[Result "0-1"]
[ECO "A46"]
[WhiteElo "2137"]
[BlackElo "2346"]
[Annotator "RC"]
[PlyCount "94"]
[EventDate "2019.03.12"]
[EventType "tourn"]
[EventCountry "BIH"]
[SourceTitle "playchess.com"]
[Source "ChessBase"]
[SourceQuality "1"]
[TimeControl "5400+30"]

1. d4 {[%emt 0:00:00]} Nf6 {[%emt 0:00:00]} 2. Nf3 {[%emt 0:00:00]} c5 {[%emt 0:00:00]} 3. e3 {[%emt 0:00:21]} g6 {[%emt 0:01:29]} 4. Be2 {[%emt 0:04:22]} Bg7 {[%emt 0:01:36]} 5. O-O {[%emt 0:02:26]} cxd4 {[%emt 0:00:18]} 6. exd4 {[%emt 0:00:25]} d5 {[%emt 0:00:27]} 7. c3 {[%emt 0:01:04]} Nc6 {[%emt 0:07:48]} 8. Bf4 {[%emt 0:01:18]} Bg4 {[%emt 0:03:09]} 9. h3 {[%emt 0:00:39]} Bxf3 {[%emt 0:00:21]} 10. Bxf3 {[%emt 0:00:10]} O-O {[%emt 0:00:30]} 11. Nd2 {[%emt 0:00:13]} Re8 {[%emt 0:04:25]} 12. Re1 {[%emt 0:01:01]} e6 {[%emt 0:03:09]} 13. Nb3 {[%emt 0:04:03]} Nd7 {[%emt 0:01:51]} 14. Rb1 {[%emt 0:03:35]} Rc8 {[%emt 0:07:54]} 15. Nc1 {[%emt 0:01:10]} Na5 {[%emt 0:09:32]} 16. Nd3 {[%emt 0:01:04]} Nc4 {[%emt 0:00:40]} 17. Qb3 {[%emt 0:06:54]} Na5 {[%emt 0:06:44]} 18. Qd1 {[%emt 0:04:21]} a6 {[%emt 0:01:59]} 19. Be2 {[%emt 0:04:58]} Nc4 {[%emt 0:05:19]} 20. Bf1 {[%emt 0:02:12]} Bf8 {[%emt 0:03:26]} 21. g3 {[%emt 0:04:16]} Nf6 {[%emt 0:01:59]} 22. Bg2 {[%emt 0:00:27]} Nh5 {[%emt 0:01:45]} 23. Bc1 {[%emt 0:00:20]} Bd6 {[%emt 0:00:46]} 24. Bf3 {[%emt 0:00:30]} Ng7 {[%emt 0:00:46]} 25. h4 {[%emt 0:01:05]} h5 {[%emt 0:01:46]} 26. Bf4 {[%emt 0:01:52]} Nf5 {[%emt 0:01:50]} 27. Bg2 {[%emt 0:04:44]} Bxf4 {[%emt 0:04:54]} 28. Nxf4 {[%emt 0:00:12]} Qd6 {[%emt 0:00:24]} 29. Nd3 {[%emt 0:00:16]} b6 {[%emt 0:01:48]} 30. Bh3 {[%emt 0:00:18]} Ng7 {[%emt 0:02:10]} 31. Qe2 {[%emt 0:02:30]} a5 {[%emt 0:02:11]} 32. Rbd1 {[%emt 0:00:50]} Qd8 {[%emt 0:03:35]} 33. Ne5 {[%emt 0:00:52]} Nxe5 {[%emt 0:00:43]} 34. Qxe5 {[%emt 0:00:17]} b5 {[%emt 0:03:18]} 35. Bf1 {[%emt 0:00:32]} Qb6 {[%emt 0:02:52]} 36. Bd3 {[%emt 0:02:01]} b4 {[%emt 0:04:53]} 37. cxb4 {[%emt 0:01:27]} Qxb4 {[%emt 0:00:04]} 38. b3 {[%emt 0:01:53]} Rc3 {[%emt 0:00:42]} 39. Qe2 {[%emt 0:00:27]} Rec8 {[%emt 0:00:25]} 40. Bb1 {[%emt 0:01:25]} R8c6 {[%emt 0:01:47]} 41. Kf1 {[%emt 0:00:59]} Ne8 {[%emt 0:01:13]} 42. Rd3 {[%emt 0:00:16]} Nf6 {[%emt 0:00:35]} 43. Rxc3 {[%emt 0:00:16]} Qxc3 {[%emt 0:00:18]} 44. Rd1 {[%emt 0:00:14]} Kg7 {[%emt 0:00:46]} 45. Qe5 {[%emt 0:01:01]} Qf3 {[%emt 0:00:18]} 46. Re1 {[%emt 0:04:08]} Rc3 {[%emt 0:01:48]} 47. Qf4 {[%emt 0:03:53]} Qxf4 {[%emt 0:01:01]} 0-1

[Event "Sarajevo-ch 2019"]
[Site "Sarajevo"]
[Date "2019.03.16"]
[Round "6.1"]
[White "Kurtcehajic, Suad"]
[Black "Halilovic, Fahrudin"]
[Result "1/2-1/2"]
[ECO "B22"]
[WhiteElo "1982"]
[BlackElo "2053"]
[Annotator "NA"]
[PlyCount "51"]
[EventDate "2019.03.12"]
[EventType "tourn"]
[EventCountry "BIH"]
[SourceTitle "playchess.com"]
[Source "ChessBase"]
[SourceQuality "1"]
[TimeControl "5400+30"]

1. e4 {[%emt 0:01:07]} c5 {[%emt 0:01:12]} 2. c3 {[%emt 0:00:04]} d5 {[%emt 0:08:11]} 3. exd5 {[%emt 0:00:16]} Qxd5 {[%emt 0:00:05]} 4. d4 {[%emt 0:09:33]} cxd4 {[%emt 0:00:12]} 5. cxd4 {[%emt 0:00:06]} Nc6 {[%emt 0:00:04]} 6. Nf3 {[%emt 0:00:52]} Bg4 {[%emt 0:00:04]} 7. Be2 {[%emt 0:00:10]} e6 {[%emt 0:07:11]} 8. Nc3 {[%emt 0:00:05]} Qa5 {[%emt 0:00:05]} 9. h3 {[%emt 0:06:41]} Bh5 {[%emt 0:00:16]} 10. d5 {[%emt 0:00:11]} exd5 {[%emt 0:06:29]} 11. Qxd5 {[%emt 0:00:04]} Qxd5 {[%emt 0:00:08]} 12. Nxd5 {[%emt 0:00:05]} O-O-O {[%emt 0:00:04]} 13. Nf4 {[%emt 0:08:03]} Bb4+ {[%emt 0:00:08]} 14. Kf1 {[%emt 0:00:30]} Bxf3 {[%emt 0:05:54]} 15. Bxf3 {[%emt 0:00:06]} Nf6 {[%emt 0:00:11]} 16. Be3 {[%emt 0:00:10]} Rhe8 {[%emt 0:01:23]} 17. Rd1 {[%emt 0:02:28]} Rxd1+ {[%emt 0:00:05]} 18. Bxd1 {[%emt 0:00:06]} Rd8 {[%emt 0:00:29]} 19. Ke2 {[%emt 0:12:23]} Nd4+ {[%emt 0:00:05]} 20. Bxd4 {[%emt 0:00:04]} Rxd4 {[%emt 0:00:10]} 21. Nd3 {[%emt 0:00:13]} Ba5 {[%emt 0:00:43]} 22. Bb3 {[%emt 0:00:03]} Rd7 {[%emt 0:00:14]} 23. Rc1+ {[%emt 0:01:03]} Kd8 {[%emt 0:00:58]} 24. Ba4 {[%emt 0:00:07]} Re7+ {[%emt 0:00:03]} 25. Kf3 {[%emt 0:00:50]} Bb6 {[%emt 0:00:06]} 26. Rd1 {[%emt 0:00:04]} 1/2-1/2

[Event "Sarajevo-ch 2019"]
[Site "Sarajevo"]
[Date "2019.03.16"]
[Round "6.3"]
[White "Sutkovic, Damir"]
[Black "Burovic, Rijad"]
[Result "0-1"]
[ECO "A01"]
[WhiteElo "2346"]
[BlackElo "2340"]
[Annotator "NA"]
[PlyCount "155"]
[EventDate "2019.03.12"]
[EventType "tourn"]
[EventCountry "BIH"]
[SourceTitle "playchess.com"]
[Source "ChessBase"]
[SourceQuality "1"]
[TimeControl "5400+30"]

1. b3 {[%emt 0:00:00]} e5 {[%emt 0:04:00]} 2. Bb2 {[%emt 0:00:00]} d6 {[%emt 0:01:10]} 3. e3 {[%emt 0:00:02]} Nf6 {[%emt 0:02:42]} 4. d4 {[%emt 0:01:28]} exd4 {[%emt 0:00:49]} 5. Qxd4 {[%emt 0:00:17]} d5 {[%emt 0:00:28]} 6. Nf3 {[%emt 0:00:52]} Be7 {[%emt 0:04:36]} 7. Be2 {[%emt 0:01:02]} c5 {[%emt 0:01:55]} 8. Qd1 {[%emt 0:00:40]} O-O {[%emt 0:00:24]} 9. O-O {[%emt 0:00:48]} Be6 {[%emt 0:05:47]} 10. Nbd2 {[%emt 0:05:15]} Nc6 {[%emt 0:00:46]} 11. Ne5 {[%emt 0:03:12]} Nxe5 {[%emt 0:02:44]} 12. Bxe5 {[%emt 0:00:06]} Qd7 {[%emt 0:05:59]} 13. c4 {[%emt 0:06:54]} Rfd8 {[%emt 0:02:28]} 14. Nf3 {[%emt 0:04:50]} dxc4 {[%emt 0:09:17]} 15. Bxc4 {[%emt 0:00:53]} Bxc4 {[%emt 0:05:51]} 16. bxc4 {[%emt 0:00:06]} Qe6 {[%emt 0:00:38]} 17. Qb3 {[%emt 0:04:55]} Rd7 {[%emt 0:11:01]} 18. Rad1 {[%emt 0:14:40]} Rad8 {[%emt 0:01:32]} 19. Rxd7 {[%emt 0:02:02]} Rxd7 {[%emt 0:03:56]} 20. Bxf6 {[%emt 0:12:45]} Bxf6 {[%emt 0:01:00]} 21. h3 {[%emt 0:00:22]} h5 {[%emt 0:01:29]} 22. Qc2 {[%emt 0:01:08]} g6 {[%emt 0:02:21]} 23. Rb1 {[%emt 0:01:45]} Qd6 {[%emt 0:02:53]} 24. Qe4 {[%emt 0:01:22]} b6 {[%emt 0:02:24]} 25. Rc1 {[%emt 0:05:15]} Qd3 {[%emt 0:03:56]} 26. Qxd3 {[%emt 0:02:48]} Rxd3 {[%emt 0:00:09]} 27. Kf1 {[%emt 0:01:19]} Kf8 {[%emt 0:00:59]} 28. Ke2 {[%emt 0:00:32]} Ra3 {[%emt 0:00:15]} 29. Rc2 {[%emt 0:00:07]} Ke7 {[%emt 0:00:40]} 30. Nd2 {[%emt 0:01:28]} Kd7 {[%emt 0:02:09]} 31. Nb1 {[%emt 0:04:58]} Ra4 {[%emt 0:00:46]} 32. Nd2 {[%emt 0:03:18]} Kc6 {[%emt 0:00:55]} 33. Ne4 {[%emt 0:01:55]} Be7 {[%emt 0:00:59]} 34. Kd3 {[%emt 0:02:12]} Ra3+ {[%emt 0:03:05]} 35. Ke2 {[%emt 0:00:19]} a6 {[%emt 0:02:07]} 36. Nd2 {[%emt 0:07:55]} (36. g4 $11 {keeps the balance.}) 36... b5 {[%emt 0:00:54]} 37. Nb1 {[%emt 0:00:44]} Ra4 {[%emt 0:00:16]} 38. Nd2 {[%emt 0:00:23]} Bd8 {[%emt 0:04:03]} 39. Kd3 {[%emt 0:02:37]} Ba5 {[%emt 0:04:01]} 40. Nb3 {[%emt 0:01:40]} Bb4 {[%emt 0:00:52]} 41. Nc1 {[%emt 0:01:56]} f5 {[%emt 0:03:27]} ({Better is} 41... Ra3+ $17 42. Ke4 Be1 43. cxb5+ axb5) 42. Nb3 {[%emt 0:04:51]} Kb6 {[%emt 0:00:55]} 43. Nc1 {[%emt 0:00:42]} Ra3+ {[%emt 0:00:25]} 44. Ke2 {[%emt 0:00:32]} bxc4 {[%emt 0:01:06]} 45. Rxc4 {[%emt 0:00:07]} Kb5 {[%emt 0:00:10]} 46. Rc2 {[%emt 0:00:40]} c4 {[%emt 0:00:19]} 47. h4 {[%emt 0:00:56]} a5 {[%emt 0:02:46]} 48. g3 {[%emt 0:00:17]} Bc3 {[%emt 0:01:34]} 49. Kd1 {[%emt 0:00:58]} Kc5 {[%emt 0:00:38]} 50. Ne2 {[%emt 0:00:31]} Be5 {[%emt 0:00:13]} 51. Rd2 {[%emt 0:00:33]} Ra4 {[%emt 0:01:03]} 52. Nc1 {[%emt 0:00:20]} Rb4 {[%emt 0:00:16]} 53. Rc2 {[%emt 0:00:33]} Rb1 {[%emt 0:00:41]} 54. Kd2 {[%emt 0:00:29]} Kb5 {[%emt 0:00:35]} 55. Ne2 {[%emt 0:00:32]} Rf1 {[%emt 0:00:27]} 56. Nc3+ {[%emt 0:00:21]} Kb4 {[%emt 0:00:32]} 57. Nd1 {[%emt 0:00:11]} Rh1 {[%emt 0:00:27]} 58. Ke2 {[%emt 0:01:01]} c3 {[%emt 0:00:31]} 59. Rc1 {[%emt 0:00:14]} Ka3 {[%emt 0:00:32]} 60. Rc2 {[%emt 0:00:44]} a4 {[%emt 0:00:24]} 61. Rc1 $1 {[%emt 0:00:35]} Kxa2 {[%emt 0:00:35]} 62. Nxc3+ {[%emt 0:00:05]} Bxc3 {[%emt 0:00:00]} 63. Rxh1 {[%emt 0:00:06]} Kb3 {[%emt 0:01:00]} 64. Kd3 {[%emt 0:00:14]} a3 {[%emt 0:00:30]} 65. e4 {[%emt 0:00:41]} a2 {[%emt 0:00:27]} 66. exf5 {[%emt 0:00:47]} gxf5 {[%emt 0:00:07]} 67. Rc1 {[%emt 0:00:44]} Bb2 {[%emt 0:00:36]} 68. Rd1 {[%emt 0:00:47]} a1=Q {[%emt 0:00:10]} 69. Rxa1 {[%emt 0:00:02]} Bxa1 {[%emt 0:00:06]} 70. f3 {[%emt 0:00:29]} Be5 {[%emt 0:01:29]} 71. g4 {[%emt 0:00:06]} fxg4 {[%emt 0:00:39]} 72. fxg4 {[%emt 0:00:05]} hxg4 {[%emt 0:00:04]} 73. h5 {[%emt 0:00:17]} Bf4 {[%emt 0:00:28]} 74. Ke2 {[%emt 0:00:25]} Kc4 {[%emt 0:00:07]} 75. Kf2 {[%emt 0:00:04]} Kd5 {[%emt 0:00:13]} 76. h6 {[%emt 0:00:04]} Ke4 {[%emt 0:00:04]} 77. h7 {[%emt 0:00:27]} Be5 {[%emt 0:00:05]} 78. Ke2 0-1